Cogmind - Beta 13 @@@ ROGUE MODE // 2024.04.01 @ 21:05:59 Player: Aa1k Result: Destroyed by as-49345 with Assembled Blade Performance ------------- Evolutions (1) 500 Regions Visited (3) 600 Robots Destroyed (17) 85 Value Destroyed (574) 574 Prototype IDs (1) 20 Alien Tech Used (0) 0 Bonus (0) 0 TOTAL SCORE: 1779 Bonus ------- None Cogmind --------- Core Integrity 0/400 Matter 290/300 Energy 100/100 System Corruption 0% Temperature Cool (0) Movement Core (100) Ox1 Location -9/Mines Parts ------- > --- POWER (1) -------- (None) > --- PROPULSION (2) --- (None) > --- UTILITY (3) ------ Small Storage Unit Targeting Computer > --- WEAPON (3) ------- (None) > --- INVENTORY (8) ---- Targeting Computer Targeting Computer Targeting Computer Peak State ------------ > --- POWER ------------ Light Ion Engine > --- PROPULSION ------- Improved Treads Improved Treads > --- UTILITY ---------- Small Storage Unit Targeting Computer High-powered Tractor Beam > --- WEAPON ----------- Improved Assault Rifle Improved Assault Rifle Improved Assault Rifle > --- INVENTORY -------- Light Ion Engine Improved Treads System Shield System Shield Particle Cannon Particle Cannon Particle Cannon [Rating: 19] Favorites ----------- Power Light Ion Engine Engine Light Ion Engine Propulsion Improved Treads Treads Improved Treads Utility Small Storage Unit Device High-powered Tractor Beam Storage Small Storage Unit Processor Targeting Computer Weapon Improved Assault Rifle Energy Gun Medium Laser Energy Cannon Particle Cannon Ballistic Gun Improved Assault Rifle Build | -11 -10 -9 -9 ------- Run | Yrd Mat Mat Min Slots Evolved 2 | . . 2 . Power . | . . . . Propulsion . | . . . . Utility 1 | . . 1 . Weapon 1 | . . 1 . Parts Attached 24 | 6 6 9 3 Power 3 | 1 . 1 1 Engine 3 | 1 . 1 1 Core . | . . . . Reactor . | . . . . Propulsion 8 | 2 2 2 2 Treads 8 | 2 2 2 2 Leg . | . . . . Wheel . | . . . . Hover . | . . . . Flight . | . . . . Utility 4 | 1 1 2 . Device 1 | . . 1 . Storage 2 | 1 . 1 . Processor 1 | . 1 . . Hackware . | . . . . Protection . | . . . . Artifact . | . . . . Weapon 9 | 2 3 4 . Energy Gun 2 | 2 . . . Energy Cannon 4 | . 3 1 . Ballistic Gun 3 | . . 3 . Ballistic Cannon . | . . . . Launcher . | . . . . Special Weapon . | . . . . Impact Weapon . | . . . . Slashing Weapon . | . . . . Piercing Weapon . | . . . . Special Melee Weapon . | . . . . Unidentified Prototypes 1 | . . 1 . Parts Lost 9 | . 1 . 8 Power 3 | . 1 . 2 Propulsion 3 | . . . 3 Utility 1 | . . . 1 Weapon 2 | . . . 2 Highest Loss Streak 8 | . 1 . 8 To Critical Strikes . | . . . . Average Slot Usage (%) 92 | . 96 95 77 Engine 10 | . 11 10 8 Treads 23 | . 28 22 18 Device 5 | . . 7 8 Storage 11 | . 14 11 11 Processor 11 | . 13 11 11 Energy Gun 2 | . 8 . . Energy Cannon 7 | . 19 3 . Ballistic Gun 18 | . . 28 19 Naked Turns . | . . . . Heaviest Build 20 | 12 16 20 18 Greatest Support 46 | 40 46 46 46 Greatest Overweight (x) 2 | . . . 2 Average Overweight (x) . | . . . . Largest Inventory Capacity 8 | 8 8 8 8 Average Capacity 7 | 7 8 8 8 Most Carried 8 | 2 6 8 6 Average Carried 5 | 1 4 6 5 Final Capacity 8 | 8 8 8 8 Final Carried 6 | 2 4 6 3 Class Distribution -------------------- 56% | Gunner 43% | Mutant Dominant Class ---------------- Mutant | -10/Materials Gunner | -9/Materials Gunner | -9/Mines Resources | -11 -10 -9 -9 ----------- Run | Yrd Mat Mat Min Matter Collected 690 | 247 97 291 55 Remotely 346 | . . 291 55 Salvage Created 678 | . 199 478 1 Parts 41 | . 8 33 . Haulers Intercepted 1 | . 1 . . Recyclers Shooed . | . . . . Parts Field Recycled . | . . . . Retrieved Matter . | . . . . Parts Self-Destructed . | . . . . Prevented . | . . . . Kills | -11 -10 -9 -9 ------- Run | Yrd Mat Mat Min Combat Hostiles Destroyed 11 | . 3 6 2 Guns 8 | . . 6 2 Cannons 3 | . 3 . . Classes Destroyed 6 | . 2 3 1 Hauler 1 | . 1 . . Recycler 1 | . . 1 . Watcher 4 | . . 4 . Grunt 5 | . 3 2 . Sentry 4 | . . 4 . Demolisher 2 | . . . 2 Best Kill Streak 4 | . 2 4 1 Combat Bots Only 2 | . 1 2 1 Max Kills in Single Turn 1 | . 1 1 1 Gunslinging . | . . . . Exploded . | . . . . Melee . | . . . . Uniques/NPCs Destroyed . | . . . . Combat | -11 -10 -9 -9 -------- Run | Yrd Mat Mat Min Hostile Shots Fired 111 | . 34 13 64 Missed 21 | . 4 6 11 Damage Taken 1935 | . 512 98 1325 Core 591 | . 178 . 413 Absorbed by Shields . | . . . . Core Remaining (%) 64 | 100 28 . . Volleys Fired 41 | . 17 17 7 Largest 3 | . 2 3 3 Hottest 136 | . 136 69 69 Shots Fired 95 | . 29 51 15 Gun 66 | . . 51 15 Cannon 29 | . 29 . . Launcher . | . . . . Special . | . . . . Kinetic 66 | . . 51 15 Thermal 29 | . 29 . . Explosive . | . . . . Electromagnetic . | . . . . Robot Hit Streak 16 | . 3 13 16 Robot Miss Streak 4 | . 4 2 2 Penetration Max . | . . . . Secondary Targets . | . . . . Shots Hit Robots 56 | . 15 29 12 Core Hits 28 | . 5 16 7 Critical Kills . | . . . . Critical Parts Destroyed . | . . . . Critical Strikes . | . . . . Melee Attacks . | . . . . Impact . | . . . . Slashing . | . . . . Piercing . | . . . . Sneak Attacks . | . . . . Combat Hostiles . | . . . . Follow-up Attacks . | . . . . Damage Inflicted 1013 | . 333 495 185 Guns 663 | . . 487 176 Cannons 329 | . 329 . . Explosions . | . . . . Melee . | . . . . Ramming 21 | . 4 8 9 Kinetic 663 | . . 487 176 Thermal 329 | . 329 . . Explosive . | . . . . Electromagnetic . | . . . . Impact . | . . . . Slashing . | . . . . Piercing . | . . . . Highest Corruption . | . . . . Average Corruption . | . . . . Corruption Purged . | . . . . Corruption Blocked . | . . . . Overload Shots . | . . . . Overflow Damage . | . . . . Projectiles . | . . . . Explosions . | . . . . Melee . | . . . . Knockbacks . | . . . . Impact . | . . . . Kinetic . | . . . . Secondary . | . . . . Self-Inflicted Damage 1 | . . . 1 Shots . | . . . . Rammed 11 | . 1 3 7 Targets Rammed 12 | . 1 4 7 Kicked . | . . . . Crushed 1 | . . 1 . Highest Temperature 702 | . 702 13 . Average Temperature 354 | . 378 9 . Received Heat Transfer 300 | . 255 45 . Effects 27 | . 27 . . Shutdowns 4 | . 4 . . Energy Bleed 4 | . 4 . . Interference 5 | . 5 . . Matter Decay 3 | . 3 . . Short Circuit 2 | . 2 . . Damage (minor) 2 | . 2 . . Damage (major) 4 | . 4 . . Damage (core) 3 | . 3 . . Siege Activations . | . . . . Robots Corrupted . | . . . . Combat Hostiles . | . . . . Parts Fried . | . . . . Impact Corruptions . | . . . . Robots Melted . | . . . . Combat Hostiles . | . . . . Parts Melted 1 | . 1 . . Heat Transferred 592 | . 592 . . Parts Sabotaged . | . . . . Parts Stolen . | . . . . Parts Stripped . | . . . . Power Chain Reactions . | . . . . Alert | -11 -10 -9 -9 ------- Run | Yrd Mat Mat Min Peak Influence 238 | . 83 238 104 Initial 39 | . . 34 39 Average 53 | . 19 80 56 Maximum Alert Level 1 | . . 1 . Low Security (%) 96 | 100 100 93 100 Level 1 3 | . . 6 . Level 2 . | . . . . Level 3 . | . . . . Level 4 . | . . . . Level 5 . | . . . . High Security . | . . . . Max Security . | . . . . Squads Dispatched 2 | . 1 1 . Investigation 2 | . 1 1 . Extermination . | . . . . Reinforcement . | . . . . Assault . | . . . . Garrison . | . . . . Intercept . | . . . . Searches Triggered . | . . . . Construction Impeded . | . . . . Haulers Reinforced . | . . . . Active Scanning Responses . | . . . . Cargo Convoy Interrupts . | . . . . Stealth | -11 -10 -9 -9 --------- Run | Yrd Mat Mat Min Distress Signals 5 | . . 3 2 Communications Jammed . | . . . . Distress Signals . | . . . . Times Spotted 29 | . 4 13 12 Peak Tracking Total 6 | . 3 4 6 Tactical Retreats 2 | . . . 2 Traps | -11 -10 -9 -9 ------- Run | Yrd Mat Mat Min Traps Triggered 1 | . 1 . . Indirectly . | . . . . Trap Hack Attempts . | . . . . Triggered . | . . . . Disarmed . | . . . . Reprogrammed . | . . . . Reused . | . . . . Traps Extracted . | . . . . Installed . | . . . . Triggered . | . . . . Machines | -11 -10 -9 -9 ---------- Run | Yrd Mat Mat Min Machines Disabled 2 | . 1 . 1 Max in Single Turn 1 | . 1 . 1 Machines Repaired . | . . . . Machines Dismantled . | . . . . Machines Sabotaged . | . . . . Overloaded Fab Kills . | . . . . Hacking | -11 -10 -9 -9 --------- Run | Yrd Mat Mat Min Machines Accessed 4 | . 1 3 . Terminals 3 | . 1 2 . Fabricators . | . . . . Repair Stations 1 | . . 1 . Recycling Units . | . . . . Scanalyzers . | . . . . Garrison Access . | . . . . Total Hacks 9 | . 2 7 . Successful 4 | . 1 3 . Failed 5 | . 1 4 . Catastrophic 3 | . 1 2 . Database Lockouts . | . . . . Manual 1 | . 1 . . Terminals 6 | . 2 4 . Fabricators . | . . . . Repair Stations 3 | . . 3 . Recycling Units . | . . . . Scanalyzers . | . . . . Garrison Access . | . . . . Terminal Hacks 3 | . 1 2 . Record 3 | . 1 2 . Fabricator Hacks . | . . . . Repair Station Hacks 1 | . . 1 . Scan Component 1 | . . 1 . Recycling Unit Hacks . | . . . . Scanalyzer . | . . . . Garrison Access Hacks . | . . . . Unauthorized Hacks . | . . . . Terminals . | . . . . Fabricators . | . . . . Repair Stations . | . . . . Recycling Units . | . . . . Scanalyzers . | . . . . Garrison Access . | . . . . Data Cores Recovered . | . . . . Used . | . . . . Hacking Detections 3 | . 1 2 . Full Trace Events 1 | . . 1 . Feedback Events . | . . . . Feedback Blocked . | . . . . Robot Schematics Acquired . | . . . . Robots Built . | . . . . Authchips . | . . . . Time . | . . . . Total Robot Build Rating . | . . . . Part Schematics Acquired . | . . . . Parts Built . | . . . . Authchips . | . . . . Time . | . . . . Total Part Build Rating . | . . . . Parts Repaired . | . . . . Time . | . . . . Parts Recycled . | . . . . Recycled Matter . | . . . . Retrieved Matter . | . . . . Retrieved Components . | . . . . Parts Scanalyzed . | . . . . Part Schematics Acquired . | . . . . Parts Damaged . | . . . . Bothacking | -11 -10 -9 -9 ------------ Run | Yrd Mat Mat Min Used RIF Installer . | . . . . Robots Hacked . | . . . . Non-combat . | . . . . Combat . | . . . . Robot Hacks Applied . | . . . . Relay Couplers Released . | . . . . Fabnet Peak Effective % . | . . . . Robots Rewired . | . . . . Allies Hacked . | . . . . Hacks Repelled . | . . . . Allies | -11 -10 -9 -9 -------- Run | Yrd Mat Mat Min Total Allies . | . . . . Largest Group . | . . . . Highest-Rated Group . | . . . . Highest-Rated Ally . | . . . . Total Orders . | . . . . Ally Attacks . | . . . . Total Damage . | . . . . Kills . | . . . . Allies Corrupted . | . . . . Allies Melted . | . . . . Intel | -11 -10 -9 -9 ------- Run | Yrd Mat Mat Min Robot Analysis Total . | . . . . Derelict Logs Recovered . | . . . . Drone Launches . | . . . . Drone Recoveries . | . . . . Exploration | -11 -10 -9 -9 ------------- Run | Yrd Mat Mat Min Turns Passed 1300 | 137 323 640 200 Spaces Moved 678 | 83 148 340 107 Core 17 | 5 . . 12 Treads 661 | 78 148 340 95 Legs . | . . . . Wheels . | . . . . Hover . | . . . . Flight . | . . . . Fastest Speed 50 | 50 160 160 100 Average Speed 158 | 153 160 160 154 Slowest Speed 160 | 160 160 160 160 Overloaded Moves . | . . . . Propulsion Burnouts . | . . . . Robots Hopped . | . . . . Cave-ins Triggered . | . . . . Exploration Rate (%) 22 | 4 25 31 28 Regions Visited 3 Branch Regions 1 Pre-discovered Areas . | . . . . Known Exits Taken . | . . . . Unknown Exits Taken 3 | 1 1 1 . Scrap Searched . | . . . . Spaces Dug . | . . . . Terrain Destroyed . | . . . . Melee . | . . . . Projectile . | . . . . AOE . | . . . . Terrain Rammed . | . . . . Walls Destroyed . | . . . . Machines Disabled . | . . . . Actions | -11 -10 -9 -9 --------- Run | Yrd Mat Mat Min Total 821 | 90 207 398 126 Wait 30 | . 21 7 2 Move 675 | 82 147 339 107 Hop . | . . . . Pick Up 18 | 2 5 11 . Fast Attach 13 | 6 3 4 . Attach 7 | . 1 3 3 Detach 3 | . 3 . . Swap 4 | . 2 2 . Drop 18 | . 7 11 . Fire 41 | . 17 17 7 Melee . | . . . . Ram 1 | . . . 1 Kick . | . . . . Crush 11 | . 1 4 6 Escape Stasis . | . . . . Rewire . | . . . . Trap . | . . . . Miscellaneous . | . . . . Route ------- -11/Scrapyard -10/Materials -9/Materials (discovered 2 exits: [*Mat] / [*Min]) -9/Mines History --------- Turn | Location | Event 5 | -11/Scrapyard | Discovered new exit (range 15) 138 | -11/Scrapyard | Entered Materials 311 | -10/Materials | Build established: Mutant 423 | -10/Materials | Core integrity fell below 50% 454 | -10/Materials | Discovered new exit (range 3) 461 | -10/Materials | Entered another Materials area 461 | -9/Materials | Evolved 2 slots: Utility x1, Weapon x1 810 | -9/Materials | Build established: Gunner 909 | -9/Materials | Discovered new exit (range 15) 974 | -9/Materials | Discovered new exit (range 13) 1101 | -9/Materials | Entered Mines 1102 | -9/Mines | Assembled infested the area 1107 | -9/Mines | Assisted by a Guerilla fighting off Assembled 1132 | -9/Mines | Met a Derelict bent on vengeance 1277 | -9/Mines | Core integrity fell below 50% 1288 | -9/Mines | Core integrity fell below 20% 1301 | -9/Mines | Destroyed by as-49345 with Assembled Blade Last Messages --------------- Imp. Assault Rifle destroyed. Acquired 3 matter. Lgt. Ion Engine destroyed. Core Extractor disabled. Acquired 3 matter. Imp. Assault Rifle destroyed. Acquired 10 matter. Slammed into as-87366. Imp. Treads destroyed. Slammed into as-87366. Slammed into as-96653. Imp. Treads severed. Slammed into as-96653. Lgt. Ion Engine destroyed. Hpw. Tractor Beam destroyed. G-34 Mercenary destroyed. as-94405 destroyed. G-34 Mercenary destroyed. Imp. Treads destroyed. Lgt. Treads destroyed. Map ----- +----------------------------------------------------+ | ??### %#######???????????????????????????????????? | | ????## #???????????????????????????????????? | | ###### ##### #???????????????????????????????????? | | # #??????????????????????????????????????? | | # "" [""" #??????????????????????????????????????? | | # """%""" #??????????????????????????????????????? | | # """%""" #??????????????????????????????????????? | | # % #??????????????????????????????????????? | | ### #######??????????????????????????????????????? | | ??# #????????????????????????????????????????????? | | ### ###?????#????????????????????????????????????? | | #???## ????????????????????????????????????? | | %%=#???# ????????????????????????????????????? | | %% #### ????????????????????????????????????? | | "" # ????????????????????????????????????? | | "" ## #????????????????????????????????????? | | "" ## ## #????????????????????????????????????? | | ## ## #????????????????????????????????????? | | "" ## ## #????????????????????????????????????? | | "" ## #????????????????????????????????????? | | "" ##### #????????????????????????????????????? | | #???# #????????????????????????????????????? | | ### ###???# ######???????????????????????????????? | | ??# ??????# #????####???????????????????????? | | ??##??????# ###### ##??????????????????????? | | ??????????###### a@#??????????????????????? | | ???????????????# ####a a #??????????????????????? | | ???????????????# a #??????????????????????? | | ???????????????##### #??????????????????????? | | ???????????????????# #??????????????????????? | | ???????????????????## ##??????????????????????? | | ????????????????????######???????????????????????? | | ?????????????????????????????????????????????????? | | ?????????????????????????????????????????????????? | | ?????????????????????????????????????????????????? | | | | | | | | | | | | | | | | | | | | | | | | | | | | | | | +----------------------------------------------------+ Best States ------------- Heat Dissipation 28 Energy Generation 10 Energy Capacity 125 Matter Stores 300 Matter Capacity 300 Sight Range 16 Terrain Scan Density 10 Evasion (%) 40 Targeting Accuracy 5 Recoil Reduction 2 Item Schematics ----------------- None Robot Schematics ------------------ None Fabricated ------------ Nothing Alien Tech Used ----------------- None Achievements -------------- None Challenges ------------ None Game ------ Seed MatterVortexLoader Manual? 0 Play Time 00:15:31 Cumulative 6.3 hours Start 2024.04.01 @ 20:45:34 End 2024.04.01 @ 21:05:59 Sessions 1 Manual Loads 0 Difficulty Rogue Special Mode None Game No. 9 Rogue 9 Adventurer 0 Explorer 0 Win Type - Total 0 Types 0/0/0/0/0/0/0/0/0 Lore% 3 Gallery% 16 Achievement% 12 Wizard Run 0 Options --------- Layout 1 ASCII 0 Keyboard 0 Movement Arrows Keybinds 0 Fullscreen 1 Font 24/Smallcaps Map View 50x35 Zoom Use 0% Tactical HUD 0 Map Filters NONE Filters NONE Steam 1 RUN: c26c9559-fe51-448e-8285-2d8f5c4d5a12